bitfinex/quotes_SOLUSD_20220119
["timestamp","ask_amount","ask_price","bid_price","bid_amount"]
[1642608913644,17.61206472,135.77,135.7,11.052]
[1642608913847,17.61206472,135.77,135.7,46.57383439]
[1642608914246,17.61206472,135.77,135.71,0.25]
[1642608914449,17.11206472,135.77,135.7,35.52183439]
[1642608915047,11.0527,135.79,135.7,35.52183439]
[1642608915446,0.25,135.78,135.71,11.0514]
[1642608915646,4.90277533,135.8,135.71,11.3014]
[1642608915846,0.25,135.79,135.71,11.3014]
[1642608917746,0.25,135.8,135.71,11.3014]
[1642608917947,3.196,135.8,135.71,11.3014]
[1642608918548,0.25,135.8,135.71,11.3014]
[1642608918748,0.25,135.81,135.71,12.99188294]
[1642608919280,0.25,135.82,135.71,12.99188294]
[1642608919447,3.196,135.82,135.71,12.99188294]
[1642608919851,5.15277533,135.82,135.71,12.99188294]
[1642608920248,3.196,135.82,135.71,12.99188294]
[1642608920747,3.196,135.82,135.71,85.71188294]
[1642608920950,2.946,135.82,135.71,85.71188294]
[1642608921352,2.946,135.82,135.72,8.84]
[1642608921556,1.95677533,135.86,135.75,11.0447]
[1642608921754,1.95677533,135.86,135.76,42.74898652]
[1642608921955,1.95677533,135.86,135.76,59.27946946]
[1642608922153,15.27717875,135.87,135.77,72.72]
[1642608922353,15.27717875,135.87,135.77,74.41048294]
[1642608922554,15.27717875,135.87,135.78,1.94048294]
[1642608922754,15.27717875,135.87,135.79,37.1895018]
[1642608922954,15.27717875,135.87,135.79,38.87998474]
[1642608923155,15.27717875,135.87,135.82,11.0427]
[1642608923355,15.27717875,135.87,135.83,44.73659984]
[1642608923554,15.94547533,135.9,135.83,44.73659984]
[1642608923756,1.95677533,135.9,135.83,44.73659984]
[1642608924157,1.95677533,135.92,135.85,11.0403]
[1642608924457,4.90077533,135.93,135.85,11.0403]
[1642608924655,1.95677533,135.93,135.86,35.73645979]
[1642608925258,15.94007533,135.94,135.86,35.73645979]
[1642608925456,1.95677533,135.94,135.86,35.73645979]
[1642608925657,4.89977533,135.95,135.87,72.97]
[1642608925859,1.95677533,135.97,135.87,0.25]
[1642608926057,23.14645671,135.98,135.88,1.69451526]
[1642608926257,21.18968138,135.98,135.89,0.25]
[1642608926457,21.18968138,135.98,135.89,49.82373163]
[1642608926661,21.18968138,135.98,135.89,62.55534689]
[1642608926957,21.18968138,135.98,135.89,77.51734689]
[1642608927157,21.18968138,135.98,135.9,2.942]
[1642608927360,21.18968138,135.98,135.89,58.66373163]
[1642608927557,39.977286,136.0,135.9,11.0357]
[1642608927758,42.919286,136.0,135.86,2.942]
[1642608927960,6.0,135.99,135.84,1.69451526]
[1642608928158,2.943,135.98,135.85,0.25]
[1642608928658,0.25,135.97,135.85,0.25]
[1642608928958,2.943,135.96,135.87,36.55683646]
[1642608929157,2.943,135.97,135.87,36.55683646]
[1642608929362,2.943,135.98,135.87,36.55683646]
[1642608929562,2.942,135.99,135.87,38.25135172]
[1642608929861,11.0378,135.97,135.85,10.53451526]
[1642608930061,2.943,135.96,135.82,8.84]
[1642608930262,49.9554,135.99,135.82,8.84]
[1642608930460,0.25,135.95,135.83,6.0]
[1642608930660,2.943,135.94,135.83,1.69451526]
[1642608930864,3.193,135.98,135.84,48.03050918]
[1642608931063,0.25,135.93,135.86,11.0396]
[1642608931261,3.193,135.94,135.86,11.0396]
[1642608931562,2.943,135.94,135.86,12.73411526]
[1642608931762,2.943,135.96,135.87,0.25]
[1642608931964,2.942,135.98,135.87,38.67976365]
[1642608932163,13.9768,136.01,135.9,45.08350911]
[1642608932564,6.0,136.0,135.91,1.94451526]
[1642608933563,6.0,136.0,135.91,0.25]
[1642608934164,0.25,135.99,135.9,45.08350911]
[1642608934567,10.77790404,136.0,135.9,45.08350911]
[1642608934765,2.942,135.99,135.9,45.08350911]
[1642608935670,2.942,135.99,135.87,8.84]
[1642608935869,13.9779,135.99,135.89,11.0369]
[1642608936070,0.25,135.98,135.89,11.0369]
[1642608936270,2.942,135.97,135.89,11.0369]
[1642608936669,0.25,135.96,135.89,11.0369]
[1642608936869,2.942,135.99,135.89,11.0369]
[1642608937172,6.0,136.0,135.93,11.0339]
[1642608937569,6.0,136.0,135.89,1.69438829]
[1642608937771,8.942,136.0,135.88,2.942]
[1642608937972,2.942,136.0,135.88,2.942]
[1642608938170,11.0377,135.97,135.89,11.0367]
[1642608938370,6.25,135.99,135.89,11.0367]
[1642608938371,2.942,135.96,135.89,11.0367]
[1642608938572,9.192,135.99,135.9,35.93861782]
[1642608938870,6.25,135.99,135.9,35.93861782]
[1642608939371,0.25,135.99,135.9,35.93861782]
[1642608939773,0.25,136.0,135.9,35.93861782]
[1642608939971,2.942,135.99,135.9,35.93861782]
[1642608940171,0.25,135.98,135.9,35.93861782]
[1642608940575,3.192,135.98,135.86,1.69438829]
[1642608940776,3.192,135.98,135.87,0.25]
[1642608941378,6.0,135.97,135.87,0.25]
[1642608941579,6.0,135.97,135.88,45.19573418]
[1642608941806,0.25,135.96,135.88,45.19573418]
[1642608942706,0.25,135.97,135.88,45.19573418]
[1642608943107,0.25,135.97,135.87,0.25]
[1642608943307,11.0384,135.96,135.84,51.9987]
[1642608943506,13.9814,135.96,135.84,49.0567]
[1642608943707,13.9814,135.96,135.81,78.4148]
[1642608943708,0.25,135.95,135.81,78.4148]
[1642608943908,2.943,135.94,135.81,75.4718]
[1642608944107,2.943,135.94,135.82,37.08793084]
[1642608944307,0.25,135.93,135.82,37.08793084]
[1642608944509,11.2911,135.93,135.82,48.13013084]
[1642608944709,11.2911,135.93,135.82,51.07313084]
[1642608945010,2.943,135.95,135.82,125.48466922]
[1642608945209,0.25,135.94,135.82,125.48466922]
[1642608945407,0.25,135.94,135.82,52.76466922]
[1642608945609,11.2898,135.94,135.82,95.77346922]
[1642608945808,14.2328,135.94,135.83,0.25]
[1642608946008,14.2328,135.94,135.84,11.0405]
[1642608946209,11.2898,135.94,135.85,0.25]
[1642608947010,11.2898,135.94,135.85,11.2902]
[1642608947210,0.25,135.94,135.86,43.25983917]
[1642608947411,19.9818,135.96,135.86,43.25983917]
[1642608947614,0.25,135.95,135.86,43.25983917]
[1642608948410,0.25,135.95,135.86,54.29863917]
[1642608949814,0.25,135.95,135.87,0.25]
[1642608950014,0.25,135.95,135.87,11.2881]
[1642608951130,11.0388,135.96,135.87,11.2881]
[1642608952121,12.99557533,135.96,135.87,11.2881]
[1642608952322,0.25,135.95,135.87,11.2881]
[1642608953324,13.24597533,135.95,135.86,43.25983917]
[1642608953524,27.89138378,135.94,135.86,43.25983917]
[1642608953723,1.95677533,135.92,135.86,43.25983917]
[1642608954326,4.89977533,135.92,135.86,43.25983917]
[1642608954826,2.943,135.92,135.86,43.25983917]
[1642608955426,2.20677533,135.93,135.86,43.25983917]
[1642608955828,13.24747533,135.93,135.86,43.25983917]
[1642608958427,1.95677533,135.92,135.86,43.25983917]
[1642608958928,0.25,135.91,135.86,43.25983917]
[1642608959226,1.95677533,135.92,135.86,43.25983917]
[1642608959427,1.95677533,135.93,135.87,1.94153838]
[1642608959627,1.95677533,135.93,135.87,4.88453838]
[1642608959827,1.95677533,135.96,135.87,4.88453838]
[1642608960030,1.95677533,135.96,135.88,8.84]
[1642608960234,1.95677533,135.96,135.9,36.06473993]
[1642608960431,17.13272265,136.0,135.9,36.06473993]
[1642608960432,1.95677533,135.97,135.9,36.06473993]
[1642608960657,1.95677533,135.98,135.91,11.2841]
[1642608961259,1.95677533,135.98,135.89,112.4423]
[1642608961260,0.25,135.97,135.89,2.942]
[1642608961456,5.14877533,135.97,135.85,13.47353838]
[1642608961658,1.95677533,135.95,135.84,24.5832]
[1642608961854,1.95677533,135.93,135.85,11.0398]
[1642608962055,1.95677533,135.94,135.85,21.57133838]
[1642608962255,4.20154233,135.97,135.85,21.57133838]
[1642608962256,1.95677533,135.95,135.85,21.57133838]
[1642608962457,1.95677533,135.95,135.86,72.72]
[1642608962758,1.95677533,135.95,135.87,0.25]
[1642608962957,1.95677533,135.95,135.87,40.60193903]
[1642608963156,0.25,135.94,135.88,11.0379]
[1642608963556,2.20677533,135.94,135.88,11.0379]
[1642608963757,0.25,135.94,135.88,11.0379]
[1642608964559,1.95677533,135.94,135.88,11.0379]
[1642608964761,4.89977533,135.95,135.88,11.0379]
[1642608964960,1.95677533,135.95,135.88,11.0379]
[1642608965859,1.95677533,135.97,135.91,11.0345]
[1642608966562,1.95677533,135.97,135.92,36.1898817]
[1642608966959,1.95677533,135.97,135.92,47.2243817]
[1642608969668,1.95677533,135.98,135.93,0.25]
[1642608969968,1.95677533,135.98,135.94,11.0322]
[1642608970670,1.95677533,135.98,135.95,42.50089721]
[1642608971069,1.95677533,135.98,135.96,3.03219997]
[1642608972269,1.95677533,135.99,135.96,3.03219997]
[1642608973472,1.95677533,135.99,135.97,3.03219997]
[1642608973871,1.95677533,135.99,135.98,3.03219997]
[1642608975372,1.95677533,135.99,135.98,38.80862109]
[1642608976775,1.95677533,136.01,135.98,38.80862109]
[1642608976975,1.95677533,136.02,135.99,3.03219997]
[1642608977275,1.95677533,136.02,136.0,3.03219997]
[1642608977475,1.95677533,136.03,136.0,3.03219997]
[1642608977879,1.95677533,136.02,136.0,3.03219997]
[1642608978280,1.95677533,136.02,136.0,6.06439994]
[1642608979779,27.25,136.01,136.0,6.06439994]
[1642608979980,30.19,136.01,135.93,2.94]
[1642608980281,2.07652606,136.0,135.92,60.8148]
[1642608980481,2.07652606,136.0,135.92,69.6548]
[1642608980684,2.07652606,136.0,135.93,44.92389202]
[1642608981487,2.07652606,136.0,135.94,11.0325]
[1642608982487,3.191,135.99,135.92,11.0342]
[1642608982888,5.26752606,135.99,135.92,11.0342]
[1642608983287,11.62496218,135.98,135.88,48.4443277]
[1642608983490,13.9793,135.97,135.88,11.0373]
[1642608983690,16.30582606,135.97,135.84,2.942]
[1642608983887,2.07652606,135.95,135.8,2.06690355]
[1642608984088,11.01952606,135.94,135.79,29.45220355]
[1642608984288,2.07652606,135.92,135.79,24.4423]
[1642608984490,11.0434,135.9,135.8,52.82262995]
[1642608984686,9.54843612,135.88,135.8,52.82262995]
[1642608985088,0.25,135.87,135.8,52.82262995]
[1642608985687,0.25,135.87,135.8,41.77922995]
[1642608986914,31.72491078,135.87,135.8,41.77922995]
[1642608987115,0.25,135.87,135.8,41.77922995]
[1642608988415,11.0446,135.88,135.8,41.77922995]
[1642608988618,11.0446,135.88,135.8,52.82292995]
[1642608990018,0.25,135.87,135.8,52.82292995]
[1642608990219,3.194,135.87,135.8,52.82292995]
[1642608990818,2.944,135.87,135.8,52.82292995]
[1642608991222,13.9875,135.9,135.8,52.82292995]
[1642608991620,0.25,135.89,135.8,52.82292995]
[1642608991819,2.944,135.88,135.8,52.82292995]
[1642608992220,0.25,135.87,135.8,52.82292995]
[1642608992620,2.944,135.9,135.8,52.82292995]
[1642608992820,0.25,135.89,135.8,52.82292995]
[1642608993020,2.944,135.88,135.8,52.82292995]
[1642608994221,0.25,135.87,135.8,52.82292995]
[1642608995530,0.25,135.87,135.8,11.0437]
[1642608995731,0.25,135.87,135.76,2.944]
[1642608995932,2.945,135.86,135.7,11.785]
[1642608996132,14.84,135.85,135.69,2.06690355]
[1642608996334,27.1119,135.84,135.68,2.06690355]
[1642608996533,21.12910544,135.83,135.68,2.06690355]
[1642608996730,2.946,135.82,135.67,45.47071227]
[1642608996930,8.84,135.81,135.67,45.47071227]
[1642608997133,11.0547,135.77,135.67,45.47071227]
[1642608997330,15.84818999,135.77,135.67,45.47071227]
[1642608997531,3.197,135.76,135.67,45.47071227]
[1642608998030,0.25,135.76,135.67,45.47071227]
[1642608998637,6.25,135.78,135.67,129.24471227]
[1642608998837,6.0,135.78,135.68,2.947]
[1642608999034,6.0,135.79,135.68,2.947]
[1642608999236,6.0,135.79,135.69,0.25]
[1642608999432,2.946,135.82,135.69,0.25]
[1642608999633,0.25,135.8,135.69,0.25]
[1642609000535,11.0508,135.81,135.7,11.051]
[1642609000734,11.3008,135.81,135.71,0.25]
[1642609001136,11.3008,135.81,135.71,35.54296829]
[1642609001338,2.946,135.82,135.71,35.54296829]
[1642609001537,2.946,135.86,135.72,75.666]
[1642609001737,0.25,135.85,135.73,0.25]
[1642609001938,11.0492,135.83,135.74,11.0481]
[1642609002336,2.945,135.85,135.75,38.52070866]
[1642609002537,2.945,135.88,135.75,38.27070866]
[1642609002738,2.945,135.88,135.76,3.195]
[1642609002937,6.0,135.87,135.76,3.195]
[1642609003138,6.0,135.87,135.76,2.945]
[1642609003337,11.39891888,135.87,135.76,2.945]
[1642609003739,0.25,135.86,135.76,2.945]
[1642609003941,2.945,135.85,135.76,2.945]
[1642609004338,2.945,135.85,135.77,0.25]
[1642609004538,11.0475,135.85,135.76,11.0466]
[1642609004739,11.0475,135.85,135.77,0.25]
[1642609005439,11.0475,135.85,135.77,11.2961]
[1642609005640,11.0458,135.87,135.78,114.4830863]
[1642609006144,0.25,135.86,135.78,41.7630863]
[1642609006546,1.47967157,135.86,135.77,0.25]
[1642609006743,0.25,135.85,135.76,0.25]
[1642609006943,11.0483,135.84,135.74,27.0511]
[1642609007144,13.9933,135.84,135.7,2.945]
[1642609007343,6.25,135.83,135.69,8.84]
[1642609007545,8.13199682,135.82,135.7,55.10364329]
[1642609007742,0.25,135.81,135.7,55.10364329]
[1642609007944,2.946,135.8,135.7,49.10364329]
[1642609008351,0.25,135.79,135.7,49.10364329]
[1642609008543,1.72596152,135.79,135.71,11.0503]
[1642609008747,12.41296152,135.79,135.68,22.9299]
[1642609008947,9.46696152,135.79,135.68,22.9299]
[1642609009245,2.946,135.78,135.67,2.946]
[1642609009645,11.0549,135.76,135.67,37.92631678]
[1642609009845,14.0019,135.76,135.67,37.92631678]
[1642609010045,0.25,135.75,135.67,37.92631678]
[1642609010446,0.25,135.75,135.67,2.946]
[1642609010649,5.729,135.75,135.67,2.946]
[1642609010846,2.947,135.74,135.63,5.01390355]
[1642609011046,75.667,135.74,135.63,2.06690355]
[1642609011246,0.25,135.73,135.62,2.06690355]
[1642609011446,2.00398806,135.73,135.62,45.0026943]
[1642609011647,2.00398806,135.73,135.62,42.93579075]
[1642609011850,0.25,135.73,135.62,42.93579075]
[1642609012459,14.0061,135.72,135.62,53.99359075]
[1642609012648,14.0061,135.72,135.6,5.01490355]
[1642609012848,0.25,135.71,135.59,2.06690355]
[1642609013077,2.948,135.7,135.59,2.06690355]
[1642609013252,0.25,135.71,135.58,95.0613]
[1642609013253,0.25,135.69,135.6,2.06690355]
[1642609013757,2.948,135.68,135.59,2.06690355]
[1642609014152,72.97,135.67,135.58,2.06690355]
[1642609014357,2.949,135.66,135.57,2.06690355]
[1642609014553,2.949,135.66,135.54,135.88293695]
[1642609014554,2.949,135.66,135.56,2.06690355]
[1642609014753,0.25,135.65,135.58,34.8924253]
[1642609014953,2.949,135.64,135.58,34.8924253]
[1642609015252,0.25,135.65,135.58,34.8924253]
[1642609015456,11.3132,135.65,135.56,11.0627]
[1642609015851,11.3132,135.65,135.57,0.25]
[1642609015852,11.0632,135.65,135.57,0.25]
[1642609016052,2.949,135.67,135.55,83.73590355]
[1642609016251,39.8247,135.69,135.57,2.949]
[1642609016451,72.72,135.68,135.56,0.25]
[1642609016652,2.949,135.67,135.56,0.25]
[1642609016858,6.596578,135.66,135.57,11.062]
[1642609017054,2.949,135.65,135.56,46.18784722]
[1642609017252,0.25,135.64,135.56,46.18784722]
[1642609017453,0.25,135.64,135.54,13.85590355]
[1642609017653,2.949,135.63,135.53,2.06690355]
[1642609017854,14.0143,135.63,135.53,2.06690355]
[1642609018055,72.97,135.62,135.52,13.13310355]
[1642609018256,2.95,135.61,135.52,13.13310355]
[1642609018454,2.95,135.61,135.53,42.05522701]
[1642609019053,2.95,135.61,135.53,53.12092701]
[1642609019253,2.95,135.64,135.53,53.12092701]
[1642609019656,0.25,135.63,135.53,53.12092701]
[1642609019860,8.95,135.66,135.54,0.25]
[1642609020055,6.0,135.66,135.55,11.0638]
[1642609020353,6.0,135.66,135.57,38.96636624]
[1642609020591,6.0,135.68,135.57,38.96636624]
[1642609020757,2.949,135.65,135.58,0.25]
[1642609021056,2.949,135.67,135.58,11.3115]
[1642609021255,17.0612,135.68,135.58,11.3115]
[1642609021458,11.0612,135.68,135.58,11.3115]
[1642609021854,12.77760957,135.68,135.58,11.3115]
[1642609022054,12.77760957,135.68,135.57,38.96636624]
[1642609022263,3.199,135.67,135.56,11.0626]
[1642609022455,11.0637,135.65,135.54,2.949]
[1642609022656,2.949,135.64,135.51,24.64200355]
[1642609022954,3.199,135.64,135.51,22.5751]
[1642609023155,0.25,135.64,135.52,0.25]
[1642609023356,2.95,135.63,135.52,37.77109325]
[1642609023757,11.3158,135.62,135.52,48.83709325]
[1642609024557,11.0658,135.62,135.52,48.83709325]
[1642609024760,0.25,135.61,135.52,48.83709325]
[1642609025057,14.2667,135.61,135.52,48.58709325]
[1642609025258,11.3167,135.61,135.52,48.58709325]
[1642609025458,0.25,135.61,135.52,48.58709325]
[1642609025663,0.25,135.64,135.52,48.58709325]
[1642609025859,0.25,135.64,135.52,51.53709325]
[1642609026262,11.3141,135.64,135.52,51.53709325]
[1642609026461,11.3141,135.64,135.53,11.3152]
[1642609026662,2.95,135.63,135.53,11.3152]
[1642609027060,0.25,135.62,135.53,11.3152]
[1642609028088,2.95,135.64,135.53,11.3152]
[1642609028263,2.95,135.67,135.57,11.0605]
[1642609028463,2.95,135.67,135.58,38.3616637]
[1642609028660,1.68814992,135.7,135.58,38.6116637]
[1642609028661,2.949,135.69,135.58,38.6116637]
[1642609028861,1.68814992,135.7,135.59,11.788]
[1642609029061,4.63714992,135.7,135.59,11.788]
[1642609029261,4.63714992,135.7,135.6,0.25]
[1642609029462,1.68814992,135.7,135.6,0.25]
[1642609029867,1.68814992,135.7,135.61,11.0586]
[1642609030062,1.68814992,135.7,135.61,19.8986]
[1642609030274,1.68814992,135.7,135.62,0.25]
[1642609030865,2.948,135.73,135.62,44.03826559]
[1642609031265,2.948,135.73,135.64,11.0559]
[1642609031466,2.948,135.74,135.64,11.0559]
[1642609031666,2.948,135.74,135.65,0.25]
[1642609031868,34.4129,135.75,135.65,0.25]
[1642609032068,11.0557,135.75,135.65,0.25]
[1642609032268,2.947,135.74,135.65,34.86418633]
[1642609032469,14.36059396,135.74,135.66,11.0547]
[1642609032666,0.25,135.73,135.66,11.0547]
[1642609032867,3.197,135.73,135.66,11.0547]
[1642609033269,2.947,135.73,135.67,0.25]
[1642609033470,2.947,135.76,135.67,0.25]
[1642609033670,2.947,135.77,135.67,11.3038]
[1642609033871,11.0532,135.78,135.68,36.1688532]
[1642609034272,2.946,135.79,135.69,0.25]
[1642609034472,47.5944,135.81,135.69,0.25]
[1642609034473,2.946,135.8,135.69,0.25]
[1642609034673,2.946,135.8,135.69,18.5775]
[1642609034875,31.78716323,135.82,135.69,35.10976289]
[1642609035273,31.78716323,135.82,135.69,33.4175]
[1642609035701,31.78716323,135.82,135.69,33.6775]
[1642609036502,31.78716323,135.82,135.73,11.0474]
[1642609036903,2.946,135.81,135.71,35.38250698]
[1642609037105,2.946,135.82,135.71,35.38250698]
[1642609037303,2.946,135.82,135.72,0.25]
[1642609037805,11.3008,135.81,135.72,0.25]
[1642609038004,2.946,135.8,135.72,0.25]
[1642609038403,8.09679524,135.8,135.71,46.43290698]
[1642609038603,0.25,135.79,135.71,46.43290698]
[1642609038806,2.946,135.8,135.71,46.43290698]
[1642609039204,2.946,135.8,135.72,0.25]
[1642609039406,2.946,135.83,135.73,11.049]
[1642609039605,2.946,135.84,135.74,46.40902643]
[1642609039805,2.945,135.85,135.74,46.65902643]
[1642609040006,1.40188453,135.86,135.74,46.65902643]
[1642609040408,2.945,135.85,135.74,46.65902643]
[1642609040605,1.40188453,135.86,135.74,46.65902643]
[1642609040805,2.945,135.85,135.74,46.65902643]
[1642609041407,2.945,135.85,135.77,11.046]
[1642609041607,12.44858453,135.86,135.78,42.12556825]
[1642609041608,1.40188453,135.86,135.78,42.12556825]
[1642609041807,2.945,135.88,135.78,42.37556825]
[1642609042015,2.944,135.89,135.78,42.37556825]
[1642609042207,2.944,135.91,135.79,2.944]
[1642609042608,2.944,135.91,135.8,0.25]
[1642609042809,11.0418,135.92,135.82,44.92823918]
[1642609043012,2.944,135.94,135.83,2.943]
[1642609043209,2.944,135.94,135.83,0.25]
[1642609043409,6.0,135.93,135.83,0.25]
[1642609043809,13.984,135.94,135.84,11.04]
[1642609044011,20.06019683,135.95,135.84,20.269]
[1642609044211,20.06019683,135.95,135.85,0.25]
[1642609044413,20.06019683,135.95,135.85,9.09]
[1642609044610,20.06019683,135.95,135.85,15.09]
[1642609044911,20.06019683,135.95,135.86,42.04069328]
[1642609045109,20.06019683,135.95,135.87,8.84]
[1642609045310,20.06019683,135.95,135.88,2.943]
[1642609045513,20.06019683,135.95,135.88,13.9782]
[1642609045810,2.943,135.99,135.89,0.25]
[1642609046011,11.0352,136.0,135.89,39.76012425]
[1642609046222,0.25,135.99,135.89,48.60012425]
[1642609046811,0.25,135.99,135.89,48.35012425]
[1642609047012,7.97052654,135.98,135.89,48.35012425]
[1642609047214,7.97052654,135.98,135.85,8.84]
[1642609047412,6.0,135.97,135.84,26.7055]
[1642609047613,2.943,135.96,135.84,23.7635]
[1642609047812,3.193,135.97,135.85,2.943]
[1642609048016,0.25,135.97,135.85,2.943]
[1642609048414,11.2877,135.97,135.85,13.9821]
[1642609048615,2.943,135.98,135.86,44.37832321]
[1642609048815,3.192,135.99,135.87,2.942]
[1642609049015,0.25,135.99,135.88,8.84]
[1642609049215,0.25,135.99,135.88,9.09]
[1642609049415,0.25,135.99,135.89,39.15482791]
[1642609049615,2.942,135.98,135.89,50.18922791]
[1642609049920,0.25,135.97,135.87,2.942]
[1642609050119,2.942,135.96,135.87,2.942]
[1642609050417,0.25,135.95,135.87,2.942]
[1642609050618,2.942,135.96,135.87,2.942]
[1642609050817,8.09157111,135.96,135.87,2.942]
[1642609051018,0.25,135.95,135.87,2.942]
[1642609051418,0.25,135.95,135.87,13.9795]
[1642609051621,0.25,135.95,135.87,2.942]
[1642609051821,2.943,135.94,135.83,57.1054167]
[1642609052021,7.51238723,135.93,135.83,48.2654167]
[1642609052221,2.943,135.92,135.83,48.2654167]
[1642609052619,0.25,135.91,135.83,48.2654167]
[1642609052819,2.943,135.9,135.82,11.0421]
[1642609053223,0.25,135.89,135.82,11.0421]
[1642609053719,0.25,135.89,135.82,57.68241053]
[1642609054523,0.25,135.89,135.82,11.0421]
[1642609056522,0.25,135.89,135.82,54.9536781]
[1642609057626,2.943,135.9,135.82,54.9536781]
[1642609057827,2.944,135.93,135.83,1.94226289]
[1642609058025,23.8322,135.95,135.86,11.039]
[1642609058026,26.7752,135.95,135.86,11.039]
[1642609058230,2.943,135.96,135.86,11.039]
[1642609058425,2.943,135.96,135.87,0.25]
[1642609058728,24.8086,135.97,135.87,42.40734455]
[1642609058927,24.8086,135.97,135.87,39.46434455]
[1642609059330,22.15885199,135.99,135.87,39.21434455]
[1642609059526,17.037,135.98,135.89,11.0365]
[1642609059730,17.037,135.98,135.87,39.21434455]
[1642609059731,2.942,135.97,135.87,39.21434455]
[1642609061027,0.25,135.96,135.87,39.21434455]
[1642609061228,0.25,135.97,135.88,0.25]
[1642609061428,0.25,135.97,135.88,5.701]
[1642609062528,0.25,135.97,135.89,11.036]
[1642609062728,1.73776527,135.97,135.87,39.21434455]
[1642609062930,2.942,135.96,135.85,23.922]
[1642609063335,6.25,135.95,135.85,23.922]
[1642609063536,2.943,135.94,135.81,8.84]
[1642609063738,11.2911,135.93,135.82,0.25]
[1642609063937,8.11719307,135.92,135.82,40.06559547]
[1642609064336,0.25,135.91,135.82,40.06559547]
[1642609064937,0.25,135.91,135.83,11.0409]
[1642609065139,2.943,135.93,135.83,11.0409]
[1642609065537,2.943,135.93,135.84,0.25]
[1642609065738,2.943,135.93,135.82,149.33129547]
[1642609065939,2.943,135.94,135.83,8.84]
[1642609066139,2.943,135.94,135.86,11.0388]
[1642609066338,2.07652606,135.97,135.86,11.0388]
[1642609066539,5.01952606,135.98,135.87,0.25]
[1642609066739,8.49921068,135.98,135.87,41.01883169]
[1642609066940,5.01852606,135.97,135.87,41.01883169]
[1642609067141,11.0383,135.96,135.86,11.0383]
[1642609067341,5.01952606,135.95,135.86,11.0383]
[1642609067639,18.34852606,135.95,135.83,2.943]
[1642609067839,2.07652606,135.93,135.79,88.18]
[1642609068039,8.944,135.92,135.8,48.16632985]
[1642609068244,14.2355,135.92,135.83,36.73648749]
[1642609069471,16.31202606,135.92,135.83,36.73648749]
[1642609069670,2.07652606,135.91,135.83,36.73648749]
[1642609070070,16.31202606,135.92,135.83,36.73648749]
[1642609070271,13.36802606,135.92,135.83,36.73648749]
[1642609070472,13.11802606,135.92,135.83,47.77768749]
[1642609072069,2.07652606,135.91,135.83,47.77768749]
[1642609072270,5.01952606,135.91,135.83,47.77768749]
[1642609072772,2.07652606,135.93,135.84,23.0727]
[1642609072973,2.07652606,135.95,135.84,23.0727]
[1642609073182,2.07652606,135.95,135.84,71.5567]
[1642609073474,2.07652606,135.95,135.84,24.51496289]
[1642609073672,13.11672606,135.94,135.84,13.9827]
[1642609073877,2.07652606,135.93,135.82,11.0418]
[1642609074073,2.07652606,135.91,135.82,11.0418]
[1642609074273,3.194,135.9,135.82,11.0418]
[1642609074474,0.25,135.9,135.82,11.0418]
[1642609074673,1.79501334,135.9,135.82,11.0418]
[1642609074874,12.83791334,135.9,135.78,2.06690355]
[1642609075073,8.944,135.89,135.77,5.00990355]
[1642609075275,0.25,135.88,135.78,0.25]
[1642609075475,2.944,135.87,135.78,0.25]
[1642609075675,0.25,135.88,135.78,44.23895081]
[1642609076476,0.25,135.88,135.78,55.28385081]
[1642609076677,0.25,135.88,135.78,11.0449]
[1642609076878,6.25,135.88,135.76,4.63626289]